[Event "44th Chess Olympiad Women 2022"]
[Site "Chennai"]
[Date "2022.08.08"]
[Round "10.13"]
[White "Besso, Guadalupe"]
[Black "Levitan, Ronit"]
[Result "1/2-1/2"]
[WhiteElo "2059"]
[BlackElo "2084"]
[Annotator "NA RC"]
[PlyCount "64"]
[EventDate "2022.??.??"]
[TimeControl "60"]

1. d4 {[%emt 0:00:05]} Nf6 {[%emt 0:01:58]} 2. c4 {[%emt 0:01:05]} e6 {[%emt 0:
00:00]} 3. Nf3 {[%emt 0:00:26]} d5 {[%emt 0:00:00]} 4. Nc3 {[%emt 0:00:47]} c5
{[%emt 0:01:24]} 5. e3 {[%emt 0:00:28]} Nc6 {[%emt 0:02:43]} 6. a3 {[%emt 0:00:
00]} dxc4 {[%emt 0:01:05]} 7. Bxc4 {[%emt 0:00:29]} a6 {[%emt 0:00:18]} 8. O-O
{[%emt 0:02:30]} b5 {[%emt 0:03:54]} 9. Bd3 {[%emt 0:11:36]} Bb7 {[%emt 0:00:
00]} 10. dxc5 {[%emt 0:02:46]} Bxc5 {[%emt 0:00:40]} 11. b4 {[%emt 0:00:47]}
Bb6 {[%emt 0:01:43]} 12. Bb2 {[%emt 0:00:21]} O-O {[%emt 0:00:08]} 13. Rc1 {
[%emt 0:04:05]} Qe7 {[%emt 0:03:02]} 14. Ne4 {[%emt 0:08:45]} Nxe4 {[%emt 0:00:
00]} 15. Bxe4 {[%emt 0:00:10]} Rac8 {[%emt 0:00:22]} 16. Qb3 {[%emt 0:17:45]}
Ba7 {[%emt 0:12:04]} 17. Rfd1 {[%emt 0:03:20]} Na5 {[%emt 0:02:03]} 18. Bxh7+ {
[%emt 0:19:32]} Kxh7 {[%emt 0:00:08]} 19. bxa5 {[%emt 0:00:06]} Bb8 {[%emt 0:
00:00]} 20. Qd3+ {[%emt 0:03:23]} Kg8 {[%emt 0:00:17]} 21. Rxc8 {[%emt 0:00:22]
} Rxc8 {[%emt 0:00:33]} 22. Qd4 {[%emt 0:00:58]} f6 {[%emt 0:00:41]} 23. Qb4 {
[%emt 0:10:46]} Qc7 {[%emt 0:02:30]} 24. Rc1 {[%emt 0:07:01]} Qd7 {[%emt 0:00:
00]} 25. Rxc8+ {[%emt 0:00:07]} Qxc8 {[%emt 0:00:25]} 26. Qd2 {[%emt 0:01:10]}
Qc7 {[%emt 0:00:32]} 27. Qc3 {[%emt 0:01:35]} Bxf3 {[%emt 0:01:40]} 28. gxf3 {
[%emt 0:00:29]} Qxh2+ {[%emt 0:00:21]} 29. Kf1 {[%emt 0:00:04]} Qd6 {[%emt 0:
00:00]} 30. Ke2 {[%emt 0:00:29]} Kf7 {[%emt 0:00:52]} 31. f4 {[%emt 0:01:33]}
Bc7 {[%emt 0:00:19]} 32. Bc1 {[%emt 0:00:25]} Qd8 {[%emt 0:00:50]} 1/2-1/2

[Event "44th Chess Olympiad Women 2022"]
[Site "Chennai"]
[Date "2022.08.08"]
[Round "10.13"]
[White "Borda Rodas, Anapaola S."]
[Black "Belenkaya, Dina"]
[Result "1/2-1/2"]
[WhiteElo "2183"]
[BlackElo "2256"]
[Annotator "NA RC"]
[PlyCount "69"]
[EventDate "2022.??.??"]
[TimeControl "60"]

1. e4 {[%emt 0:00:08]} c6 {[%emt 0:00:05]} 2. Nf3 {[%emt 0:00:07]} d5 {[%emt 0:
00:00]} 3. exd5 {[%emt 0:00:05]} cxd5 {[%emt 0:00:22]} 4. Ne5 {[%emt 0:00:28]}
Nc6 {[%emt 0:01:50]} 5. d4 {[%emt 0:00:08]} Nf6 {[%emt 0:01:55]} 6. Bb5 {
[%emt 0:00:21]} Bd7 {[%emt 0:00:33]} 7. Nxd7 {[%emt 0:00:13]} Qxd7 {[%emt 0:00:
00]} 8. c3 {[%emt 0:00:16]} e6 {[%emt 0:01:02]} 9. O-O {[%emt 0:00:32]} Bd6 {
[%emt 0:00:39]} 10. Nd2 {[%emt 0:00:17]} Qc7 {[%emt 0:03:08]} 11. g3 {[%emt 0:
00:00]} h5 {[%emt 0:12:00]} 12. Nf3 {[%emt 0:00:25]} Ng4 {[%emt 0:17:26]} 13.
Qe2 {[%emt 0:09:37]} h4 {[%emt 0:05:20]} 14. Nxh4 {[%emt 0:06:28]} Nxh2 {
[%emt 0:02:25]} 15. Kxh2 {[%emt 0:01:22]} Rxh4+ {[%emt 0:00:12]} 16. Kg2 {
[%emt 0:00:08]} Rh8 {[%emt 0:02:15]} 17. Bg5 {[%emt 0:01:36]} Be7 {[%emt 0:00:
00]} 18. Bxe7 {[%emt 0:03:39]} Qxe7 {[%emt 0:04:43]} 19. Bxc6+ {[%emt 0:06:34]}
bxc6 {[%emt 0:05:44]} 20. Qa6 {[%emt 0:02:36]} Qc7 {[%emt 0:00:00]} 21. Rh1 {
[%emt 0:00:33]} Rxh1 {[%emt 0:06:50]} 22. Rxh1 {[%emt 0:00:14]} Ke7 {[%emt 0:
00:00]} 23. Rh7 {[%emt 0:05:32]} Rg8 {[%emt 0:01:05]} 24. Qe2 {[%emt 0:03:09]}
c5 {[%emt 0:02:35]} 25. Qg4 {[%emt 0:06:47]} cxd4 {[%emt 0:05:35]} 26. Qxd4 {
[%emt 0:01:00]} f6 {[%emt 0:03:42]} 27. b3 {[%emt 0:12:17]} Qb7 {[%emt 0:01:50]
} 28. Kg1 {[%emt 0:02:50]} e5 {[%emt 0:00:59]} 29. Qg4 {[%emt 0:03:41]} Kd6 {
[%emt 0:05:14]} 30. Qf3 {[%emt 0:01:01]} Qf7 {[%emt 0:04:28]} 31. Qg4 {[%emt 0:
00:00]} Qc7 {[%emt 0:01:10]} 32. c4 {[%emt 0:01:37]} d4 {[%emt 0:01:48]} 33. f4
{[%emt 0:02:29]} Qf7 {[%emt 0:04:22]} 34. Qf3 {[%emt 0:01:02]} Qe6 {[%emt 0:00:
00]} 35. Qe4 {[%emt 0:08:25]} 1/2-1/2

[Event "44th Chess Olympiad Women 2022"]
[Site "Chennai"]
[Date "2022.08.08"]
[Round "10.13"]
[White "Efroimski, Marsel"]
[Black "Campos, Maria Jose"]
[Result "1-0"]
[WhiteElo "2456"]
[BlackElo "2185"]
[Annotator "RC"]
[PlyCount "69"]
[EventDate "2022.??.??"]
[TimeControl "60"]

1. e4 {[%emt 0:00:01]} e5 {[%emt 0:00:51]} 2. Nf3 {[%emt 0:00:04]} Nc6 {
[%emt 0:00:25]} 3. Bc4 {[%emt 0:00:04]} Nf6 {[%emt 0:01:03]} 4. d3 {[%emt 0:00:
00]} Bc5 {[%emt 0:01:56]} 5. c3 {[%emt 0:00:03]} a6 {[%emt 0:01:24]} 6. a4 {
[%emt 0:00:05]} Ba7 {[%emt 0:01:14]} 7. O-O {[%emt 0:00:08]} d6 {[%emt 0:05:57]
} 8. Re1 {[%emt 0:01:08]} h6 {[%emt 0:01:56]} 9. Nbd2 {[%emt 0:00:25]} g5 {
[%emt 0:02:25]} 10. b4 {[%emt 0:20:08]} g4 {[%emt 0:06:15]} 11. Nh4 {[%emt 0:
00:00]} Nh7 {[%emt 0:15:28]} 12. g3 {[%emt 0:05:05]} Qf6 {[%emt 0:07:07]} 13.
Rf1 {[%emt 0:02:21]} Ng5 {[%emt 0:03:25]} 14. Kg2 {[%emt 0:03:03]} Nh3 {
[%emt 0:05:30]} 15. Nb3 {[%emt 0:08:30]} h5 {[%emt 0:07:04]} 16. b5 {[%emt 0:
00:00]} Ne7 {[%emt 0:05:43]} 17. f4 {[%emt 0:00:37]} Be6 {[%emt 0:02:52]} 18.
f5 {[%emt 0:01:37]} Bc8 {[%emt 0:07:40]} 19. d4 {[%emt 0:02:57]} c6 {[%emt 0:
00:00]} 20. Qe2 {[%emt 0:02:54]} Bb8 {[%emt 0:01:37]} 21. b6 {[%emt 0:04:35]}
d5 {[%emt 0:05:21]} 22. Bd3 {[%emt 0:06:21]} O-O {[%emt 0:03:09]} 23. Bd2 {
[%emt 0:02:54]} Re8 {[%emt 0:01:34]} 24. Rae1 {[%emt 0:00:16]} dxe4 {[%emt 0:
00:00]} 25. Qxe4 {[%emt 0:00:28]} Nd5 {[%emt 0:02:06]} 26. a5 {[%emt 0:00:28]}
Re7 {[%emt 0:03:37]} 27. c4 {[%emt 0:02:03]} exd4 {[%emt 0:01:22]} 28. Qxd4 {
[%emt 0:01:25]} Qxd4 {[%emt 0:01:20]} 29. Nxd4 {[%emt 0:00:05]} Rxe1 {[%emt 0:
00:00]} 30. Rxe1 {[%emt 0:00:25]} Nf6 {[%emt 0:00:12]} 31. Bc3 {[%emt 0:03:16]}
Bd7 {[%emt 0:01:06]} 32. Nb3 {[%emt 0:00:19]} Bd6 {[%emt 0:01:45]} 33. Bxf6 {
[%emt 0:00:18]} c5 {[%emt 0:00:07]} 34. Be4 {[%emt 0:01:14]} Re8 {[%emt 0:00:
00]} 35. Kf1 {[%emt 0:00:11]} 1-0

[Event "44th Chess Olympiad Women 2022"]
[Site "Chennai"]
[Date "2022.08.08"]
[Round "10.13"]
[White "Lahav, Michal"]
[Black "Sarquis, Maria Belen"]
[Result "1-0"]
[WhiteElo "2191"]
[BlackElo "2072"]
[Annotator "NA RC"]
[PlyCount "71"]
[EventDate "2022.??.??"]
[TimeControl "60"]

1. e4 {[%emt 0:00:08]} e5 {[%emt 0:00:07]} 2. Nf3 {[%emt 0:00:08]} Nc6 {
[%emt 0:00:08]} 3. Bb5 {[%emt 0:00:06]} a6 {[%emt 0:00:12]} 4. Bxc6 {[%emt 0:
00:00]} dxc6 {[%emt 0:00:09]} 5. O-O {[%emt 0:00:10]} Qf6 {[%emt 0:00:06]} 6.
d4 {[%emt 0:10:58]} exd4 {[%emt 0:00:06]} 7. Bg5 {[%emt 0:03:11]} Qd6 {[%emt 0:
00:00]} 8. Nxd4 {[%emt 0:01:35]} Bd7 {[%emt 0:01:00]} 9. Re1 {[%emt 0:18:05]}
Be7 {[%emt 0:20:06]} 10. e5 {[%emt 0:01:16]} Qg6 {[%emt 0:00:55]} 11. e6 {
[%emt 0:03:20]} fxe6 {[%emt 0:02:33]} 12. Bxe7 {[%emt 0:03:33]} Nxe7 {[%emt 0:
00:00]} 13. Nd2 {[%emt 0:00:34]} O-O-O {[%emt 0:09:03]} 14. N2f3 {[%emt 0:00:
00]} Nf5 {[%emt 0:07:59]} 15. Ne5 {[%emt 0:01:08]} Qf6 {[%emt 0:00:57]} 16. Nb3
{[%emt 0:01:53]} h5 {[%emt 0:06:07]} 17. Qe2 {[%emt 0:02:55]} Be8 {[%emt 0:00:
00]} 18. Rad1 {[%emt 0:10:04]} Kb8 {[%emt 0:05:33]} 19. Nc5 {[%emt 0:06:12]}
Ka7 {[%emt 0:05:05]} 20. Rxd8 {[%emt 0:04:31]} Qxd8 {[%emt 0:00:07]} 21. Nxe6 {
[%emt 0:00:04]} Qe7 {[%emt 0:02:24]} 22. Nf4 {[%emt 0:04:25]} Qf6 {[%emt 0:00:
00]} 23. Qc4 {[%emt 0:01:57]} g5 {[%emt 0:04:37]} 24. Nfd3 {[%emt 0:02:38]} Rh7
{[%emt 0:07:42]} 25. Qc5+ {[%emt 0:02:07]} b6 {[%emt 0:03:52]} 26. Qc3 {
[%emt 0:02:05]} Kb7 {[%emt 0:01:28]} 27. a4 {[%emt 0:01:18]} Re7 {[%emt 0:00:
00]} 28. a5 {[%emt 0:00:02]} Qd6 {[%emt 0:03:51]} 29. axb6 {[%emt 0:04:27]}
cxb6 {[%emt 0:00:16]} 30. Ra1 {[%emt 0:00:02]} a5 {[%emt 0:01:04]} 31. Nc4 {
[%emt 0:01:40]} Qd4 {[%emt 0:02:49]} 32. Nxa5+ {[%emt 0:01:51]} bxa5 {[%emt 0:
00:00]} 33. Qxa5 {[%emt 0:00:04]} Qd5 {[%emt 0:03:28]} 34. Nc5+ {[%emt 0:08:03]
} Kc8 {[%emt 0:00:22]} 35. h3 {[%emt 0:00:43]} g4 {[%emt 0:00:12]} 36. Qb6 {
[%emt 0:00:08]} 1-0

[Event "44th Chess Olympiad Women 2022"]
[Site "Chennai"]
[Date "2022.08.08"]
[Round "10.14"]
[White "Berke, Ana"]
[Black "Sandu, Mihaela"]
[Result "1-0"]
[WhiteElo "2163"]
[BlackElo "2297"]
[Annotator "NA RC"]
[PlyCount "67"]
[EventDate "2022.??.??"]
[TimeControl "60"]

1. e4 {[%emt 0:00:07]} c5 {[%emt 0:00:10]} 2. Nf3 {[%emt 0:00:08]} d6 {[%emt 0:
00:00]} 3. Bb5+ {[%emt 0:00:04]} Nd7 {[%emt 0:00:29]} 4. O-O {[%emt 0:00:16]}
a6 {[%emt 0:00:36]} 5. Bd3 {[%emt 0:00:05]} g6 {[%emt 0:03:59]} 6. c3 {[%emt 0:
00:00]} Bg7 {[%emt 0:00:03]} 7. Re1 {[%emt 0:00:26]} Ngf6 {[%emt 0:00:43]} 8.
Bc2 {[%emt 0:00:12]} O-O {[%emt 0:03:24]} 9. d4 {[%emt 0:00:09]} Qc7 {[%emt 0:
00:00]} 10. a4 {[%emt 0:02:54]} b6 {[%emt 0:03:14]} 11. d5 {[%emt 0:04:23]} Rb8
{[%emt 0:03:46]} 12. h3 {[%emt 0:05:18]} b5 {[%emt 0:03:29]} 13. axb5 {[%emt 0:
00:00]} axb5 {[%emt 0:00:25]} 14. Nbd2 {[%emt 0:03:55]} Nb6 {[%emt 0:09:32]}
15. Qe2 {[%emt 0:03:22]} Bd7 {[%emt 0:02:50]} 16. Bd3 {[%emt 0:08:55]} Na4 {
[%emt 0:09:12]} 17. Bc2 {[%emt 0:06:38]} Ra8 {[%emt 0:01:36]} 18. Qe3 {[%emt 0:
00:00]} e6 {[%emt 0:04:53]} 19. dxe6 {[%emt 0:02:57]} fxe6 {[%emt 0:05:23]} 20.
Nf1 {[%emt 0:06:26]} Nh5 {[%emt 0:01:19]} 21. e5 {[%emt 0:02:00]} d5 {[%emt 0:
00:00]} 22. b3 {[%emt 0:03:44]} Nb6 {[%emt 0:00:32]} 23. Rxa8 {[%emt 0:00:51]}
Nxa8 {[%emt 0:00:30]} 24. Qg5 {[%emt 0:02:57]} Nb6 {[%emt 0:13:49]} 25. N1h2 {
[%emt 0:04:33]} Be8 {[%emt 0:02:22]} 26. Ng4 {[%emt 0:02:55]} b4 {[%emt 0:00:
00]} 27. Nh4 {[%emt 0:03:41]} Qf7 {[%emt 0:14:26]} 28. cxb4 {[%emt 0:00:37]}
cxb4 {[%emt 0:01:20]} 29. Bd2 {[%emt 0:01:19]} Qc7 {[%emt 0:03:48]} 30. Bxg6 {
[%emt 0:04:40]} hxg6 {[%emt 0:00:51]} 31. Nxg6 {[%emt 0:01:12]} Bxg6 {[%emt 0:
00:00]} 32. Qxg6 {[%emt 0:01:15]} Nf4 {[%emt 0:00:15]} 33. Bxf4 {[%emt 0:02:12]
} Rxf4 {[%emt 0:00:05]} 34. Nf6+ {[%emt 0:00:39]} 1-0

[Event "44th Chess Olympiad Women 2022"]
[Site "Chennai"]
[Date "2022.08.08"]
[Round "10.14"]
[White "Bulmaga, Irina"]
[Black "Medic, Mirjana"]
[Result "1-0"]
[WhiteElo "2394"]
[BlackElo "2194"]
[Annotator "RC"]
[PlyCount "73"]
[EventDate "2022.??.??"]
[TimeControl "60"]

1. e4 {[%emt 0:00:04]} e6 {[%emt 0:00:05]} 2. d4 {[%emt 0:00:07]} d5 {[%emt 0:
00:00]} 3. Nc3 {[%emt 0:00:09]} Nf6 {[%emt 0:00:19]} 4. Bg5 {[%emt 0:00:16]}
Be7 {[%emt 0:00:37]} 5. e5 {[%emt 0:00:15]} Nfd7 {[%emt 0:00:02]} 6. Bxe7 {
[%emt 0:00:16]} Qxe7 {[%emt 0:00:03]} 7. f4 {[%emt 0:00:13]} a6 {[%emt 0:00:25]
} 8. Nf3 {[%emt 0:00:20]} c5 {[%emt 0:00:29]} 9. dxc5 {[%emt 0:00:17]} Nxc5 {
[%emt 0:01:47]} 10. Bd3 {[%emt 0:00:27]} Nc6 {[%emt 0:00:38]} 11. O-O {[%emt 0:
00:00]} b5 {[%emt 0:04:42]} 12. Ne2 {[%emt 0:05:35]} Qa7 {[%emt 0:10:18]} 13.
Kh1 {[%emt 0:01:45]} Nxd3 {[%emt 0:00:54]} 14. cxd3 {[%emt 0:10:08]} O-O {
[%emt 0:02:02]} 15. Qd2 {[%emt 0:05:19]} a5 {[%emt 0:04:56]} 16. Ng3 {[%emt 0:
00:00]} Bd7 {[%emt 0:03:45]} 17. f5 {[%emt 0:06:31]} f6 {[%emt 0:10:56]} 18.
fxe6 {[%emt 0:12:01]} Bxe6 {[%emt 0:00:03]} 19. exf6 {[%emt 0:02:42]} Rxf6 {
[%emt 0:00:08]} 20. Rac1 {[%emt 0:00:57]} Rc8 {[%emt 0:17:29]} 21. Nh5 {
[%emt 0:06:42]} Rff8 {[%emt 0:03:44]} 22. Nf4 {[%emt 0:00:55]} Qd7 {[%emt 0:00:
00]} 23. h3 {[%emt 0:09:28]} Qd6 {[%emt 0:06:01]} 24. Nxe6 {[%emt 0:03:00]}
Qxe6 {[%emt 0:00:07]} 25. Rfe1 {[%emt 0:05:51]} Qd6 {[%emt 0:02:04]} 26. Qe3 {
[%emt 0:01:55]} b4 {[%emt 0:08:37]} 27. Qe6+ {[%emt 0:05:57]} Qxe6 {[%emt 0:00:
00]} 28. Re2 {[%emt 0:00:04]} Qe4 29. Rxe4 {[%emt 0:00:31]} Nd4 {[%emt 0:01:04]
} 30. Re6 {[%emt 0:01:08]} Nxe6 {[%emt 0:00:02]} 31. Rxc8 {[%emt 0:01:35]} Nf4
{[%emt 0:02:18]} 32. Rc6 {[%emt 0:05:05]} Re8 {[%emt 0:00:42]} 33. Ne5 {
[%emt 0:00:21]} h6 {[%emt 0:03:18]} 34. d4 {[%emt 0:05:03]} Rc8 {[%emt 0:00:59]
} 35. Ra6 {[%emt 0:00:13]} Kf8 {[%emt 0:01:02]} 36. Nc6 {[%emt 0:03:36]} Nd3 {
[%emt 0:01:13]} 37. Kg1 {[%emt 0:00:44]} 1-0

[Event "44th Chess Olympiad Women 2022"]
[Site "Chennai"]
[Date "2022.08.08"]
[Round "10.14"]
[White "Cosma, Elena-Luminita"]
[Black "Radikovic, Anamarija"]
[Result "1/2-1/2"]
[WhiteElo "2248"]
[BlackElo "2099"]
[Annotator "NA RC"]
[PlyCount "64"]
[EventDate "2022.??.??"]
[TimeControl "60"]

1. Nf3 {[%emt 0:00:03]} Nf6 {[%emt 0:00:04]} 2. g3 {[%emt 0:00:06]} g6 {
[%emt 0:00:05]} 3. b3 {[%emt 0:00:06]} Bg7 {[%emt 0:00:04]} 4. Bb2 {[%emt 0:00:
00]} O-O {[%emt 0:00:12]} 5. Bg2 {[%emt 0:00:03]} d6 {[%emt 0:00:06]} 6. d4 {
[%emt 0:00:10]} b5 {[%emt 0:00:30]} 7. c4 {[%emt 0:19:12]} bxc4 {[%emt 0:00:05]
} 8. Nfd2 {[%emt 0:00:05]} c6 {[%emt 0:00:16]} 9. Nxc4 {[%emt 0:00:12]} d5 {
[%emt 0:05:52]} 10. Ne5 {[%emt 0:00:16]} Nfd7 {[%emt 0:00:09]} 11. Nxd7 {
[%emt 0:13:54]} Nxd7 {[%emt 0:00:18]} 12. O-O {[%emt 0:00:08]} Rb8 {[%emt 0:00:
00]} 13. Nc3 {[%emt 0:01:50]} e5 {[%emt 0:09:42]} 14. Na4 {[%emt 0:05:33]} Re8
{[%emt 0:11:05]} 15. Rc1 {[%emt 0:11:43]} Nb6 {[%emt 0:13:41]} 16. Nxb6 {
[%emt 0:04:25]} Qxb6 {[%emt 0:00:11]} 17. dxe5 {[%emt 0:00:34]} Bxe5 {[%emt 0:
00:00]} 18. Bxe5 {[%emt 0:01:24]} Rxe5 {[%emt 0:00:04]} 19. Qc2 {[%emt 0:00:51]
} Bf5 {[%emt 0:20:38]} 20. Qxc6 {[%emt 0:05:47]} Rxe2 {[%emt 0:03:11]} 21. Bxd5
{[%emt 0:04:41]} Bh3 {[%emt 0:03:14]} 22. Qxb6 {[%emt 0:17:28]} Rxb6 {[%emt 0:
00:00]} 23. Rfe1 {[%emt 0:00:20]} Rxa2 {[%emt 0:02:23]} 24. Ra1 {[%emt 0:04:55]
} Rba6 {[%emt 0:01:32]} 25. Rxa2 {[%emt 0:03:01]} Rxa2 {[%emt 0:00:06]} 26. Bc4
{[%emt 0:03:58]} Rb2 {[%emt 0:03:27]} 27. Ra1 {[%emt 0:01:07]} a5 {[%emt 0:00:
00]} 28. f4 {[%emt 0:00:51]} Rg2+ {[%emt 0:00:05]} 29. Kh1 {[%emt 0:00:10]} Rb2
{[%emt 0:00:06]} 30. Kg1 {[%emt 0:00:17]} Rg2+ {[%emt 0:00:06]} 31. Kh1 {
[%emt 0:00:07]} Rb2 {[%emt 0:00:05]} 32. Kg1 {[%emt 0:00:19]} Rg2+ {[%emt 0:00:
00]} 1/2-1/2

[Event "44th Chess Olympiad Women 2022"]
[Site "Chennai"]
[Date "2022.08.08"]
[Round "10.14"]
[White "Ivekovic, Tihana"]
[Black "Lehaci, Miruna-Daria"]
[Result "1-0"]
[WhiteElo "2082"]
[BlackElo "2193"]
[Annotator "NA RC"]
[PlyCount "53"]
[EventDate "2022.??.??"]
[TimeControl "60"]

1. d4 {[%emt 0:00:02]} d5 {[%emt 0:00:05]} 2. c4 {[%emt 0:00:05]} e6 {[%emt 0:
00:00]} 3. Nf3 {[%emt 0:00:04]} a6 {[%emt 0:00:03]} 4. g3 {[%emt 0:00:22]} dxc4
{[%emt 0:00:04]} 5. Bg2 {[%emt 0:00:12]} Nc6 {[%emt 0:00:05]} 6. O-O {[%emt 0:
00:00]} Rb8 {[%emt 0:00:05]} 7. a4 {[%emt 0:07:54]} b5 {[%emt 0:08:48]} 8. axb5
{[%emt 0:00:05]} axb5 {[%emt 0:00:03]} 9. b3 {[%emt 0:00:05]} cxb3 {[%emt 0:00:
00]} 10. Bb2 {[%emt 0:00:06]} Nf6 {[%emt 0:04:04]} 11. Qxb3 {[%emt 0:04:50]}
Be7 {[%emt 0:05:33]} 12. Rc1 {[%emt 0:06:31]} Bd7 {[%emt 0:06:45]} 13. Ne1 {
[%emt 0:04:06]} Rb6 {[%emt 0:06:51]} 14. Nd3 {[%emt 0:00:19]} O-O {[%emt 0:00:
00]} 15. Nd2 {[%emt 0:01:13]} Be8 {[%emt 0:07:40]} 16. e3 {[%emt 0:03:05]} Nb8
{[%emt 0:02:57]} 17. Nb4 {[%emt 0:17:04]} Bd6 {[%emt 0:05:34]} 18. e4 {[%emt 0:
00:00]} Be7 {[%emt 0:13:21]} 19. e5 {[%emt 0:08:13]} Bxb4 {[%emt 0:00:57]} 20.
Qxb4 {[%emt 0:00:05]} Nfd7 {[%emt 0:08:42]} 21. Ra7 {[%emt 0:09:35]} Na6 {
[%emt 0:10:53]} 22. Qa5 {[%emt 0:00:22]} Ndb8 {[%emt 0:02:09]} 23. Rcxc7 {
[%emt 0:03:11]} Nc6 {[%emt 0:11:45]} 24. Qxb6 {[%emt 0:01:18]} Nxa7 {[%emt 0:
00:00]} 25. Rb7 {[%emt 0:00:40]} Qc8 {[%emt 0:01:58]} 26. Qxa6 {[%emt 0:07:51]}
Bc6 {[%emt 0:00:35]} 27. Rxa7 {[%emt 0:00:09]} 1-0

[Event "44th Chess Olympiad Women 2022"]
[Site "Chennai"]
[Date "2022.08.08"]
[Round "10.15"]
[White "Demchenko, Svitlana"]
[Black "Yao, Lan"]
[Result "0-1"]
[WhiteElo "2122"]
[BlackElo "2274"]
[Annotator "NA RC"]
[PlyCount "92"]
[EventDate "2022.??.??"]
[TimeControl "60"]

1. d4 {[%emt 0:00:03]} Nf6 {[%emt 0:00:04]} 2. Nf3 {[%emt 0:00:10]} e6 {
[%emt 0:00:04]} 3. Bf4 {[%emt 0:00:10]} b6 {[%emt 0:00:34]} 4. e3 {[%emt 0:00:
00]} Bb7 {[%emt 0:00:05]} 5. Bd3 {[%emt 0:01:05]} Ne4 {[%emt 0:14:25]} 6. Nbd2
{[%emt 0:01:49]} Nxd2 {[%emt 0:01:08]} 7. Qxd2 {[%emt 0:00:20]} Be7 {[%emt 0:
00:00]} 8. e4 {[%emt 0:08:20]} d6 {[%emt 0:00:14]} 9. O-O {[%emt 0:02:45]} h6 {
[%emt 0:04:14]} 10. h3 {[%emt 0:02:45]} Nd7 {[%emt 0:00:13]} 11. Rfe1 {[%emt 0:
00:00]} g5 {[%emt 0:10:52]} 12. Bg3 {[%emt 0:00:46]} h5 {[%emt 0:00:49]} 13.
Qe2 {[%emt 0:03:26]} g4 {[%emt 0:03:27]} 14. hxg4 {[%emt 0:01:35]} hxg4 {
[%emt 0:00:07]} 15. Nh2 {[%emt 0:00:12]} Bh4 {[%emt 0:01:34]} 16. Qxg4 {
[%emt 0:07:21]} Bxg3 {[%emt 0:00:12]} 17. Qxg3 {[%emt 0:00:29]} Qe7 {[%emt 0:
00:00]} 18. e5 {[%emt 0:11:14]} O-O-O {[%emt 0:20:26]} 19. Be4 {[%emt 0:00:18]}
d5 {[%emt 0:01:23]} 20. Bf3 {[%emt 0:02:28]} Rh4 {[%emt 0:03:23]} 21. Bg4 {
[%emt 0:06:19]} Rdh8 {[%emt 0:00:23]} 22. Bh3 {[%emt 0:00:07]} Rxd4 {[%emt 0:
00:00]} 23. Nf3 {[%emt 0:00:17]} Re4 {[%emt 0:01:51]} 24. Qg7 {[%emt 0:01:44]}
Qf8 {[%emt 0:14:35]} 25. Qxf8+ {[%emt 0:07:51]} Rxf8 {[%emt 0:00:05]} 26. Rxe4
{[%emt 0:00:28]} dxe4 {[%emt 0:00:04]} 27. Ng5 {[%emt 0:00:11]} Nxe5 {[%emt 0:
00:00]} 28. Re1 {[%emt 0:00:20]} Rg8 {[%emt 0:05:49]} 29. f4 {[%emt 0:00:13]}
Ng6 {[%emt 0:02:55]} 30. g3 {[%emt 0:08:21]} Bd5 {[%emt 0:01:54]} 31. c4 {
[%emt 0:10:41]} Bxc4 {[%emt 0:00:35]} 32. Rxe4 {[%emt 0:00:06]} Bd5 {[%emt 0:
00:00]} 33. Rd4 {[%emt 0:03:34]} Kb7 {[%emt 0:00:43]} 34. Kf2 {[%emt 0:03:21]}
c5 {[%emt 0:03:34]} 35. Rd1 {[%emt 0:02:13]} Rf8 {[%emt 0:00:52]} 36. Bg2 {
[%emt 0:06:09]} Kc6 {[%emt 0:01:33]} 37. f5 {[%emt 0:07:19]} Ne7 {[%emt 0:00:
00]} 38. f6 {[%emt 0:00:54]} Ng6 {[%emt 0:00:24]} 39. Be4 {[%emt 0:01:25]} Ne5
{[%emt 0:00:21]} 40. Ke2 {[%emt 0:00:56]} Rg8 {[%emt 0:01:27]} 41. Bxd5+ {
[%emt 0:04:42]} exd5 {[%emt 0:01:04]} 42. Ke3 {[%emt 0:00:03]} Rxg5 {[%emt 0:
00:00]} 43. Kf4 {[%emt 0:00:03]} Rh5 {[%emt 0:00:38]} 44. g4 {[%emt 0:00:40]}
Ng6+ {[%emt 0:00:07]} 45. Kg3 {[%emt 0:00:06]} Re5 {[%emt 0:00:18]} 46. Rh1 {
[%emt 0:00:13]} Kd6 {[%emt 0:00:12]} 0-1

[Event "44th Chess Olympiad Women 2022"]
[Site "Chennai"]
[Date "2022.08.08"]
[Round "10.15"]
[White "Guo, Yu Han"]
[Black "Varney, Zoe"]
[Result "1-0"]
[WhiteElo "1630"]
[BlackElo "2045"]
[Annotator "NA RC"]
[PlyCount "69"]
[EventDate "2022.??.??"]
[TimeControl "60"]

1. d4 {[%emt 0:00:04]} Nf6 {[%emt 0:00:06]} 2. c4 {[%emt 0:00:15]} g6 {[%emt 0:
00:00]} 3. Nc3 {[%emt 0:00:33]} Bg7 {[%emt 0:00:05]} 4. e4 {[%emt 0:00:14]} d6
{[%emt 0:00:08]} 5. h3 {[%emt 0:00:48]} O-O {[%emt 0:00:58]} 6. Be3 {[%emt 0:
00:00]} Nbd7 {[%emt 0:02:23]} 7. g4 {[%emt 0:01:31]} e5 {[%emt 0:02:40]} 8. d5
{[%emt 0:02:39]} b6 {[%emt 0:04:43]} 9. b4 {[%emt 0:02:24]} a5 {[%emt 0:01:36]}
10. a3 {[%emt 0:03:06]} Ne8 {[%emt 0:02:54]} 11. Bd3 {[%emt 0:01:44]} f5 {
[%emt 0:05:29]} 12. Rc1 {[%emt 0:09:30]} axb4 {[%emt 0:23:02]} 13. axb4 {
[%emt 0:02:40]} fxe4 {[%emt 0:01:32]} 14. Bxe4 {[%emt 0:03:44]} Nef6 {[%emt 0:
00:00]} 15. g5 {[%emt 0:05:42]} Nh5 {[%emt 0:06:37]} 16. h4 {[%emt 0:03:09]}
Nf4 {[%emt 0:13:19]} 17. Nge2 {[%emt 0:02:33]} Ba6 {[%emt 0:08:27]} 18. Nb5 {
[%emt 0:09:54]} Bxb5 {[%emt 0:01:27]} 19. cxb5 {[%emt 0:00:05]} Ra2 {[%emt 0:
00:00]} 20. Rc2 {[%emt 0:01:38]} Qa8 {[%emt 0:02:48]} 21. Ng3 {[%emt 0:07:44]}
Qa4 {[%emt 0:08:22]} 22. Rxa2 {[%emt 0:12:58]} Qxa2 {[%emt 0:00:04]} 23. O-O {
[%emt 0:14:13]} Kh8 {[%emt 0:02:53]} 24. h5 {[%emt 0:01:23]} Qc4 {[%emt 0:00:
00]} 25. hxg6 {[%emt 0:02:21]} hxg6 {[%emt 0:00:12]} 26. Qg4 {[%emt 0:03:17]}
Qxb5 {[%emt 0:02:29]} 27. Bxf4 {[%emt 0:01:03]} Rxf4 {[%emt 0:00:27]} 28. Qh3+
{[%emt 0:00:29]} Kg8 {[%emt 0:00:04]} 29. Qe6+ {[%emt 0:01:04]} Kh8 {[%emt 0:
00:00]} 30. Qe8+ {[%emt 0:00:29]} Rf8 {[%emt 0:01:30]} 31. Qxg6 {[%emt 0:00:13]
} Kg8 {[%emt 0:00:14]} 32. Qe6+ {[%emt 0:01:41]} Kh8 {[%emt 0:00:32]} 33. Qh3+
{[%emt 0:00:04]} Kg8 {[%emt 0:00:06]} 34. Bh7+ {[%emt 0:00:02]} Kf7 {[%emt 0:
00:00]} 35. Qe6# {[%emt 0:00:36]} 1-0